lending/lending_fUSD_20250131
["ID","MTS","AMOUNT","RATE_DAILY","PERIOD"]
[351106875,1738339844842,-1146.51,0.00016575,2]
[351106876,1738339844851,-2451.84,0.00016575,2]
[351106877,1738339844860,-1109.53,0.00016575,2]
[351106878,1738339844869,-3757.96,0.00016575,2]
[351106879,1738339844879,-500.0,0.00016575,2]
[351106880,1738339844888,-1459.07,0.00016575,2]
[351106881,1738339844897,-966.35,0.00016575,2]
[351106882,1738339844908,-500.0,0.00016575,2]
[351106883,1738339844917,-1419.21,0.00016575,2]
[351106885,1738339844926,-860.9,0.00016575,2]
[351106887,1738339844935,-1782.52,0.00016575,2]
[351106889,1738339844944,-648.16,0.00016575,2]
[351106891,1738339844954,-500.0,0.00016575,2]
[351106893,1738339844963,-805.46,0.00016575,2]
[351106895,1738339844972,-2997.56,0.00016575,2]
[351106897,1738339844981,-2199.03,0.00016575,2]
[351106899,1738339844991,-953.43,0.00016575,2]
[351106901,1738339845000,-996.57,0.00016575,2]
[351106903,1738339845009,-500.0,0.00016575,2]
[351106905,1738339845018,-870.32,0.00016575,2]
[351106908,1738339845027,-500.0,0.00016575,2]
[351106910,1738339845037,-500.0,0.00016575,2]
[351106912,1738339845046,-500.0,0.00016575,2]
[351106914,1738339845055,-500.0,0.00016575,2]
[351106916,1738339845064,-1740.87,0.00016575,2]
[351106918,1738339845073,-3633.42,0.00016575,2]
[351106920,1738339845082,-500.0,0.00016575,2]
[351106922,1738339845093,-500.0,0.00016575,2]
[351106924,1738339845102,-500.0,0.00016575,2]
[351106926,1738339845111,-1000.0,0.00016584,2]
[351106928,1738339845120,-430.88,0.00016584,2]
[351106930,1738339845129,-1400.0,0.000166,6]
[351106931,1738339845138,-500.0,0.00016612,2]
[351106933,1738339845147,-4114.51132933,0.00016612,2]
[351106935,1738339845158,-7029.13498667,0.00016647,2]
[351106937,1738339845168,-155.94,0.00016658,30]
[351106940,1738339845178,-257.2330255,0.0001666,2]
[351106941,1738339845187,-5000.0,0.00016684,4]
[351106944,1738339845196,-2100.0,0.000167,6]
[351106946,1738339845205,-806.95,0.0001671,2]
[351106948,1738339845214,-2999.95,0.0001671,2]
[351106950,1738339845224,-500.0,0.0001671,2]
[351106952,1738339845233,-500.0,0.0001671,2]
[351106954,1738339845243,-2743.37,0.0001671,2]
[351106956,1738339845252,-784.99,0.0001671,2]
[351106957,1738339845261,-1522.06,0.0001671,2]
[351106960,1738339845271,-500.0,0.0001671,2]
[351106962,1738339845280,-780.69,0.0001671,2]
[351106964,1738339845290,-500.0,0.0001671,2]
[351106966,1738339845300,-1402.89,0.0001671,2]
[351106968,1738339845310,-1175.77,0.0001671,2]
[351106970,1738339845319,-710.82,0.0001671,2]
[351106972,1738339845329,-1494.56,0.0001671,2]
[351106974,1738339845338,-687.07,0.0001671,2]
[351106976,1738339845347,-1041.56,0.0001671,2]
[351106978,1738339845357,-952.06,0.0001671,2]
[351106980,1738339845367,-1314.47,0.0001671,2]
[351106982,1738339845376,-1741.91,0.0001671,2]
[351106984,1738339845385,-910.0,0.00016712,2]
[351106986,1738339845395,-500.0,0.00016712,2]
[351106988,1738339845405,-664.63,0.00016712,2]
[351106990,1738339845415,-639.33,0.00016712,2]
[351106992,1738339845424,-500.0,0.00016712,2]
[351106994,1738339845434,-500.0,0.00016712,2]
[351106996,1738339845443,-824.57,0.00016712,2]
[351106998,1738339845452,-500.0,0.00016712,2]
[351107000,1738339845462,-500.0,0.00016712,2]
[351107002,1738339845472,-674.36,0.00016712,2]
[351107004,1738339845481,-500.0,0.00016712,2]
[351107006,1738339845491,-500.0,0.00016712,2]
[351107008,1738339845501,-500.0,0.00016712,2]
[351107010,1738339845510,-500.0,0.00016712,2]
[351107012,1738339845520,-500.0,0.00016712,2]
[351107014,1738339845530,-500.0,0.00016712,2]
[351107016,1738339845539,-500.0,0.00016712,2]
[351107018,1738339845548,-500.0,0.00016712,2]
[351107020,1738339845558,-500.0,0.00016712,2]
[351107022,1738339845568,-273.35616586,0.00016712,2]
[351107024,1738339845577,-500.0,0.00016712,2]
[351107026,1738339845588,-500.0,0.00016712,2]
[351107028,1738339845598,-500.0,0.00016712,2]
[351107030,1738339845608,-524.25743718,0.00016712,2]
[351107032,1738339845618,-502.96,0.00016712,2]
[351107034,1738339845628,-500.0,0.00016712,2]
[351107036,1738339845638,-500.0,0.00016712,2]
[351107038,1738339845648,-500.0,0.00016712,2]
[351107040,1738339845660,-500.0,0.00016712,2]
[351107042,1738339845669,-500.0,0.00016712,2]
[351107044,1738339845678,-500.0,0.00016712,2]
[351107047,1738339845690,-500.0,0.00016712,2]
[351107049,1738339845699,-500.0,0.00016712,2]
[351107051,1738339845713,-500.0,0.00016712,2]
[351107053,1738339845722,-976.13,0.00016712,2]
[351107055,1738339845732,-782.52,0.00016712,2]
[351107057,1738339845741,-500.0,0.00016712,2]
[351107059,1738339845752,-500.0,0.00016712,2]
[351107061,1738339845767,-798.69,0.00016712,2]
[351107063,1738339845777,-500.0,0.00016712,2]
[351107065,1738339845789,-500.0,0.00016712,2]
[351107068,1738339845799,-500.0,0.00016712,2]
[351107069,1738339845809,-271.18323406,0.00016712,2]
[351107071,1738339845819,-500.0,0.00016712,2]
[351107074,1738339845829,-500.0,0.00016712,2]
[351107076,1738339845839,-500.0,0.00016712,2]
[351107078,1738339845848,-773.92,0.00016712,2]
[351107080,1738339845858,-634.85217107,0.00016712,2]
[351107082,1738339845867,-532.79,0.00016712,2]
[351107084,1738339845877,-1513.29,0.00016712,2]
[351107086,1738339845887,-500.0,0.00016712,2]
[351107088,1738339845896,-700.74,0.00016712,2]
[351107090,1738339845908,-988.33,0.00016712,2]
[351107092,1738339845917,-500.0,0.00016712,2]
[351107094,1738339845927,-500.0,0.00016712,2]
[351107096,1738339845936,-500.0,0.00016712,2]
[351107098,1738339845946,-816.15,0.00016712,2]
[351107100,1738339845956,-500.0,0.00016712,2]
[351107102,1738339845966,-500.0,0.00016712,2]
[351107104,1738339845975,-653.68,0.00016712,2]
[351107106,1738339845985,-500.0,0.00016712,2]
[351107108,1738339845994,-612.0,0.00016712,2]
[351107110,1738339846004,-581.62,0.00016712,2]
[351107112,1738339846014,-500.0,0.00016712,2]
[351107114,1738339846023,-500.0,0.00016712,2]
[351107116,1738339846032,-500.0,0.00016712,2]
[351107118,1738339846042,-528.51,0.00016712,2]
[351107120,1738339846052,-500.0,0.00016712,2]
[351107122,1738339846061,-500.0,0.00016712,2]
[351107125,1738339846070,-500.0,0.00016712,2]
[351107127,1738339846080,-1555.36,0.00016712,2]
[351107129,1738339846089,-506.3,0.00016712,2]
[351107131,1738339846099,-500.0,0.00016712,2]
[351107133,1738339846108,-500.0,0.00016712,2]
[351107135,1738339846117,-721.78,0.00016712,2]
[351107137,1738339846127,-500.0,0.00016712,2]
[351107139,1738339846136,-500.0,0.00016712,2]
[351107142,1738339846145,-520.53,0.00016712,2]
[351107146,1738339846156,-500.0,0.00016712,2]
[351107148,1738339846166,-434.98165485,0.00016712,2]
[351107150,1738339846175,-500.0,0.00016712,2]
[351107151,1738339846185,-500.0,0.00016712,2]
[351107154,1738339846195,-500.0,0.00016712,2]
[351107156,1738339846205,-500.0,0.00016712,2]
[351107158,1738339846215,-500.0,0.00016712,2]
[351107160,1738339846224,-826.2,0.00016712,2]
[351107162,1738339846234,-991.51,0.00016712,2]
[351107164,1738339846243,-1048.63,0.00016712,2]
[351107166,1738339846253,-500.0,0.00016712,2]
[351107168,1738339846264,-643.65,0.00016712,2]
[351107170,1738339846273,-500.0,0.00016712,2]
[351107172,1738339846283,-764.13,0.00016712,2]
[351107174,1738339846292,-741.9,0.00016712,2]
[351107176,1738339846307,-500.0,0.00016712,2]
[351107178,1738339846326,-500.0,0.00016712,2]
[351107180,1738339846344,-500.0,0.00016712,2]
[351107182,1738339846363,-1292.63,0.00016712,2]
[351107184,1738339846381,-500.0,0.00016712,2]
[351107186,1738339846400,-1072.67,0.00016712,2]
[351107188,1738339846417,-506.29752036,0.00016712,2]
[351107190,1738339846434,-1072.6,0.00016712,2]
[351107192,1738339846454,-500.0,0.00016712,2]
[351107194,1738339846474,-1460.43,0.00016712,2]
[351107196,1738339846492,-500.0,0.00016712,2]
[351107198,1738339846502,-539.25,0.00016712,2]
[351107200,1738339846511,-500.0,0.00016712,2]
[351107202,1738339846521,-1039.22,0.00016712,2]
[351107204,1738339846530,-500.0,0.00016712,2]
[351107206,1738339846540,-500.0,0.00016712,2]
[351107208,1738339846550,-648.26,0.00016712,2]
[351107210,1738339846560,-603.95960777,0.00016712,2]
[351107212,1738339846570,-559.27,0.00016712,2]
[351107214,1738339846580,-500.0,0.00016712,2]
[351107216,1738339846590,-500.0,0.00016712,2]
[351107219,1738339846600,-500.0,0.00016712,2]
[351107221,1738339846610,-500.0,0.00016712,2]
[351107223,1738339846620,-500.0,0.00016712,2]
[351107225,1738339846629,-511.12,0.00016712,2]
[351107227,1738339846638,-1295.21,0.00016712,2]
[351107229,1738339846648,-559.57,0.00016712,2]
[351107231,1738339846659,-500.0,0.00016712,2]
[351107233,1738339846668,-500.0,0.00016712,2]
[351107235,1738339846677,-500.0,0.00016712,2]
[351107237,1738339846688,-500.0,0.00016712,2]
[351107239,1738339846698,-518.35,0.00016712,2]
[351107241,1738339846709,-746.9,0.00016712,2]
[351107243,1738339846719,-500.0,0.00016712,2]
[351107245,1738339846729,-500.0,0.00016712,2]
[351107247,1738339846740,-500.0,0.00016712,2]
[351107249,1738339846750,-500.0,0.00016712,2]
[351107251,1738339846760,-1007.13,0.00016712,2]
[351107253,1738339846769,-843.91,0.00016712,2]
[351107255,1738339846779,-642.85,0.00016712,2]
[351107257,1738339846789,-500.0,0.00016712,2]
[351107258,1738339846798,-500.0,0.00016712,2]
[351107260,1738339846808,-500.0,0.00016712,2]
[351107262,1738339846817,-534.48,0.00016712,2]
[351107264,1738339846827,-509.02,0.00016712,2]
[351107266,1738339846836,-500.0,0.00016712,2]
[351107268,1738339846846,-500.0,0.00016712,2]
[351107270,1738339846855,-500.0,0.00016712,2]
[351107272,1738339846866,-500.0,0.00016712,2]
[351107274,1738339846875,-500.0,0.00016712,2]
[351107276,1738339846885,-960.18,0.00016712,2]
[351107279,1738339846895,-500.0,0.00016712,2]
[351107281,1738339846905,-500.0,0.00016712,2]
[351107282,1738339846915,-500.0,0.00016712,2]
[351107283,1738339846924,-500.0,0.00016712,2]
[351107284,1738339846933,-762.2,0.00016712,2]
[351107285,1738339846942,-500.0,0.00016712,2]
[351107286,1738339846952,-500.0,0.00016712,2]
[351107287,1738339846961,-500.0,0.00016712,2]
[351107288,1738339846970,-1168.73,0.00016712,2]
[351107289,1738339846980,-500.0,0.00016712,2]
[351107290,1738339846989,-657.63,0.00016712,2]
[351107291,1738339846998,-500.0,0.00016712,2]
[351107293,1738339847009,-908.99,0.00016712,2]
[351107296,1738339847019,-500.0,0.00016712,2]
[351107298,1738339847029,-500.0,0.00016712,2]
[351107300,1738339847038,-500.0,0.00016712,2]
[351107302,1738339847048,-973.08,0.00016712,2]
[351107304,1738339847058,-500.0,0.00016712,2]
[351107306,1738339847069,-500.0,0.00016712,2]
[351107308,1738339847079,-547.75,0.00016712,2]
[351107310,1738339847089,-500.0,0.00016712,2]
[351107312,1738339847099,-500.0,0.00016712,2]
[351107314,1738339847108,-517.19,0.00016712,2]
[351107316,1738339847117,-500.0,0.00016712,2]
[351107318,1738339847127,-500.0,0.00016712,2]
[351107320,1738339847136,-511.52331788,0.00016712,2]
[351107322,1738339847146,-500.0,0.00016712,2]
[351107324,1738339847157,-500.0,0.00016712,2]
[351107326,1738339847167,-500.0,0.00016712,2]
[351107328,1738339847176,-500.0,0.00016712,2]
[351107330,1738339847186,-506.59275362,0.00016712,2]
[351107332,1738339847196,-815.62,0.00016712,2]
[351107334,1738339847206,-508.49370601,0.00016712,2]
[351107336,1738339847216,-570.54,0.00016712,2]
[351107339,1738339847226,-500.0,0.00016712,2]
[351107341,1738339847235,-615.93,0.00016712,2]
[351107343,1738339847245,-500.0,0.00016712,2]
[351107345,1738339847254,-684.09,0.00016712,2]
[351107347,1738339847263,-504.11456352,0.00016712,2]
[351107349,1738339847273,-1013.31,0.00016712,2]
[351107376,1738339847490,-500.0,0.00016712,2]
[351107379,1738339847538,-500.0,0.00016712,2]
[351107381,1738339847548,-1414.13,0.00016712,2]
[351107383,1738339847557,-500.0,0.00016712,2]
[351107385,1738339847566,-506.78052393,0.00016712,2]
[351107388,1738339847577,-500.0,0.00016712,2]
[351107390,1738339847586,-502.45823327,0.00016712,2]
[351107391,1738339847596,-500.0,0.00016712,2]
[351107393,1738339847605,-500.0,0.00016712,2]
[351107396,1738339847614,-511.57476452,0.00016712,2]
[351107397,1738339847623,-427.86802156,0.00016712,2]
[351107400,1738339847633,-649.85,0.00016712,2]
[351107401,1738339847642,-596.53,0.00016712,2]
[351107404,1738339847653,-500.0,0.00016712,2]
[351107406,1738339847662,-510.3,0.00016712,2]
[351107407,1738339847671,-1192.15,0.00016712,2]
[351107410,1738339847681,-935.79,0.00016712,2]
[351107412,1738339847691,-500.0,0.00016712,2]
[351107414,1738339847703,-500.0,0.00016712,2]
[351107416,1738339847712,-1132.76,0.00016712,2]
[351107418,1738339847721,-1619.58,0.00016712,2]
[351107420,1738339847730,-500.0,0.00016712,2]
[351107422,1738339847741,-500.0,0.00016712,2]
[351107424,1738339847751,-500.0,0.00016712,2]
[351107425,1738339847760,-503.13502785,0.00016712,2]
[351107428,1738339847770,-500.0,0.00016712,2]
[351107430,1738339847781,-3314.59,0.00016712,2]
[351107431,1738339847790,-854.68,0.00016712,2]
[351107434,1738339847801,-728.49,0.00016712,2]
[351107435,1738339847810,-500.0,0.00016712,2]
[351107438,1738339847820,-2026.41,0.00016712,2]
[351107439,1738339847829,-1218.3,0.00016712,2]
[351107441,1738339847842,-947.12,0.00016712,2]
[351107444,1738339847852,-1778.29,0.00016712,2]
[351107446,1738339847861,-7486.58,0.00016712,2]
[351107448,1738339847871,-500.0,0.00016712,2]
[351107450,1738339847880,-500.0,0.00016712,2]
[351107451,1738339847890,-805.59,0.00016712,2]
[351107453,1738339847899,-577.69,0.00016712,2]
[351107455,1738339847911,-500.0,0.00016712,2]
[351107457,1738339847921,-807.78,0.00016712,2]
[351107459,1738339847931,-500.0,0.00016712,2]
[351107461,1738339847941,-500.0,0.00016712,2]
[351107463,1738339847951,-500.0,0.00016712,2]
[351107465,1738339847960,-1051.9,0.00016712,2]
[351107467,1738339847970,-980.53,0.00016712,2]
[351107469,1738339847979,-500.0,0.00016712,2]
[351107471,1738339847988,-500.0,0.00016712,2]
[351107473,1738339847998,-792.72,0.00016712,2]
[351107475,1738339848008,-936.64,0.00016712,2]
[351107477,1738339848018,-931.55,0.00016712,2]
[351107479,1738339848029,-1200.42,0.00016712,2]
[351107481,1738339848039,-739.483882,0.00016712,2]
[351107483,1738339848049,-757.97,0.00016712,2]
[351107485,1738339848059,-1040.64,0.00016712,2]
[351107487,1738339848069,-2747.69,0.00016712,2]
[351107489,1738339848078,-500.0,0.00016712,2]
[351107491,1738339848088,-855.97,0.00016712,2]
[351107494,1738339848099,-500.0,0.00016712,2]
[351107496,1738339848109,-500.0,0.00016712,2]
[351107498,1738339848120,-500.0,0.00016712,2]
[351107500,1738339848130,-500.0,0.00016712,2]
[351107502,1738339848140,-1387.07,0.00016712,2]
[351107504,1738339848150,-500.0,0.00016712,2]
[351107506,1738339848165,-500.0,0.00016712,2]
[351107508,1738339848176,-504.78,0.00016712,2]
[351107510,1738339848186,-500.0,0.00016712,2]
[351107512,1738339848197,-758.84,0.00016712,2]
[351107514,1738339848209,-807.69,0.00016712,2]
[351107516,1738339848219,-500.0,0.00016712,2]
[351107518,1738339848230,-1068.81,0.00016712,2]
[351107521,1738339848240,-1680.18,0.00016712,2]
[351107523,1738339848250,-526.4,0.00016712,2]
[351107525,1738339848260,-500.0,0.00016712,2]
[351107527,1738339848270,-506.44117568,0.00016712,2]
[351107528,1738339848280,-788.18,0.00016712,2]
[351107531,1738339848289,-1061.26,0.00016712,2]
[351107533,1738339848299,-500.0,0.00016712,2]
[351107534,1738339848310,-1155.85,0.00016712,2]
[351107537,1738339848320,-2502.49,0.00016712,2]
[351107539,1738339848331,-535.2,0.00016712,2]
[351107541,1738339848341,-973.94,0.00016712,2]
[351107543,1738339848350,-1083.92,0.00016712,2]
[351107545,1738339848360,-500.0,0.00016712,2]
[351107547,1738339848370,-580.28,0.00016712,2]
[351107549,1738339848380,-500.0,0.00016712,2]
[351107550,1738339848390,-663.861139,0.00016712,2]
[351107553,1738339848400,-643.07,0.00016712,2]
[351107555,1738339848415,-500.0,0.00016712,2]
[351107556,1738339848425,-731.54,0.00016712,2]
[351107558,1738339848435,-1678.73,0.00016712,2]
[351107560,1738339848445,-500.0,0.00016712,2]
[351107562,1738339848455,-1024.55,0.00016712,2]
[351107564,1738339848465,-500.0,0.00016712,2]
[351107566,1738339848474,-2067.49,0.00016712,2]
[351107568,1738339848484,-645.0,0.00016712,2]
[351107570,1738339848494,-1231.05,0.00016712,2]
[351107572,1738339848504,-743.06,0.00016712,2]
[351107575,1738339848515,-1414.91,0.00016712,2]
[351107577,1738339848524,-558.43,0.00016712,2]
[351107579,1738339848534,-862.97,0.00016712,2]
[351107581,1738339848544,-500.0,0.00016712,2]
[351107583,1738339848554,-500.0,0.00016712,2]
[351107585,1738339848563,-640.58158385,0.00016712,2]
[351107587,1738339848573,-1187.44,0.00016712,2]
[351107589,1738339848582,-1149.65,0.00016712,2]
[351107591,1738339848592,-825.32,0.00016712,2]
[351107593,1738339848601,-500.0,0.00016712,2]
[351107595,1738339848611,-2087.47,0.00016712,2]
[351107597,1738339848620,-500.0,0.00016712,2]
[351107599,1738339848629,-1107.78,0.00016712,2]
[351107601,1738339848638,-500.0,0.00016712,2]
[351107603,1738339848647,-1465.86,0.00016712,2]
[351107605,1738339848659,-500.0,0.00016712,2]
[351107607,1738339848668,-500.0,0.00016712,2]
[351107609,1738339848678,-500.0,0.00016712,2]
[351107611,1738339848688,-500.0,0.00016712,2]
[351107613,1738339848702,-1917.5,0.00016712,2]
[351107615,1738339848712,-500.0,0.00016712,2]
[351107617,1738339848722,-536.31,0.00016712,2]
[351107619,1738339848732,-500.0,0.00016712,2]
[351107620,1738339848743,-705.44,0.00016712,2]
[351107623,1738339848752,-500.0,0.00016712,2]
[351107624,1738339848762,-532.21,0.00016712,2]
[351107626,1738339848774,-620.02,0.00016712,2]
[351107628,1738339848784,-1826.69,0.00016712,2]
[351107629,1738339848793,-631.8,0.00016712,2]
[351107630,1738339848803,-1326.32,0.00016712,2]
[351107631,1738339848812,-500.0,0.00016712,2]
[351107632,1738339848822,-500.0,0.00016712,2]
[351107633,1738339848831,-2629.17,0.00016712,2]
[351107634,1738339848840,-520.09,0.00016712,2]
[351107635,1738339848850,-500.0,0.00016712,2]
[351107636,1738339848859,-2229.98,0.00016712,2]
[351107638,1738339848869,-1171.22,0.00016712,2]
[351107639,1738339848879,-160.111724,0.00016712,2]
[351107642,1738339848890,-1562.39,0.00016712,2]
[351107643,1738339848899,-1485.53,0.00016712,2]
[351107645,1738339848911,-500.0,0.00016712,2]
[351107647,1738339848921,-1216.61,0.00016712,2]
[351107649,1738339848931,-500.0,0.00016712,2]
[351107651,1738339848940,-2110.77,0.00016712,2]
[351107654,1738339848950,-601.74,0.00016712,2]
[351107656,1738339848960,-1157.53,0.00016712,2]
[351107658,1738339848971,-663.1,0.00016712,2]
[351107660,1738339848980,-1409.31,0.00016712,2]
[351107662,1738339848990,-1596.51,0.00016712,2]
[351107664,1738339848999,-536.51,0.00016712,2]
[351107666,1738339849008,-847.4,0.00016712,2]
[351107667,1738339849018,-1000.0,0.00016712,2]
[351107669,1738339849027,-751.1,0.00016712,2]
[351107671,1738339849037,-573.59,0.00016712,2]
[351107673,1738339849046,-1439.65,0.00016712,2]
[351107676,1738339849055,-961.12,0.00016712,2]
[351107678,1738339849065,-2817.89,0.00016712,2]
[351107680,1738339849074,-3770.8,0.00016712,2]
[351107682,1738339849083,-500.0,0.00016712,2]
[351107684,1738339849093,-812.87,0.00016712,2]
[351107686,1738339849103,-500.0,0.00016712,2]
[351107688,1738339849112,-1048.02,0.00016712,2]
[351107690,1738339849122,-1570.22,0.00016712,2]
[351107692,1738339849132,-500.0,0.00016712,2]
[351107694,1738339849142,-2922.1,0.00016712,2]
[351107696,1738339849151,-1138.01,0.00016712,2]
[351107698,1738339849163,-500.0,0.00016712,2]
[351107700,1738339849172,-547.22,0.00016712,2]
[351107702,1738339849182,-500.0,0.00016712,2]
[351107704,1738339849192,-5055.93,0.00016712,2]
[351107705,1738339849202,-513.42,0.00016712,2]
[351107707,1738339849213,-944.93,0.00016712,2]
[351107710,1738339849223,-500.0,0.00016712,2]
[351107712,1738339849233,-1268.59,0.00016712,2]
[351107714,1738339849243,-2037.46,0.00016712,2]
[351107716,1738339849253,-1454.84,0.00016712,2]
[351107718,1738339849263,-5055.91,0.00016712,2]
[351107719,1738339849273,-2816.45,0.00016712,2]
[351107722,1738339849282,-500.0,0.00016712,2]
[351107724,1738339849292,-1944.53,0.00016712,2]
[351107726,1738339849302,-567.87,0.00016712,2]
[351107728,1738339849311,-3249.16,0.00016712,2]
[351107730,1738339849322,-729.79,0.00016712,2]
[351107732,1738339849332,-500.0,0.00016712,2]
[351107734,1738339849343,-4621.29,0.00016712,2]
[351107736,1738339849353,-1403.56,0.00016712,2]
[351107738,1738339849362,-1146.51,0.00016712,2]
[351107740,1738339849371,-2451.84,0.00016712,2]
[351107742,1738339849380,-1109.53,0.00016712,2]
[351107744,1738339849390,-3757.96,0.00016712,2]
[351107746,1738339849399,-500.0,0.00016712,2]
[351107748,1738339849412,-1459.07,0.00016712,2]
[351107750,1738339849422,-966.35,0.00016712,2]
[351107752,1738339849432,-500.0,0.00016712,2]
[351107754,1738339849442,-1419.21,0.00016712,2]
[351107756,1738339849451,-860.9,0.00016712,2]
[351107758,1738339849461,-1782.52,0.00016712,2]
[351107760,1738339849471,-648.16,0.00016712,2]
[351107762,1738339849480,-500.0,0.00016712,2]
[351107764,1738339849489,-805.46,0.00016712,2]
[351107766,1738339849499,-2997.56,0.00016712,2]
[351107768,1738339849508,-2199.03,0.00016712,2]
[351107770,1738339849518,-953.43,0.00016712,2]
[351107772,1738339849527,-996.57,0.00016712,2]
[351107774,1738339849537,-500.0,0.00016712,2]
[351107776,1738339849546,-870.32,0.00016712,2]
[351107778,1738339849556,-500.0,0.00016712,2]
[351107780,1738339849566,-500.0,0.00016712,2]
[351107782,1738339849575,-1740.87,0.00016712,2]
[351107784,1738339849585,-3633.42,0.00016712,2]
[351107786,1738339849594,-500.0,0.00016712,2]
[351107788,1738339849605,-500.0,0.00016712,2]
[351107790,1738339849615,-500.0,0.00016712,2]
[351107792,1738339849624,-172.98979721,0.00016713,2]
[351107794,1738339849634,-2000.0,0.00016741,2]
[351107796,1738339849644,-200.0,0.00016741,2]
[351107798,1738339849654,-1382.5318526,0.00016745,2]
[351107800,1738339849663,-7029.13498667,0.0001675,2]
[351107802,1738339849674,-325.03991643,0.00016786,2]
[351107804,1738339849685,-2800.0,0.000168,6]
[351107806,1738339849695,-178.35,0.00016813,2]
[351107808,1738339849706,-443.96,0.00016813,2]
[351107810,1738339849718,-1000.0,0.00016829,2]
[351107812,1738339849728,-1000.0,0.00016829,2]
[351107814,1738339849737,-1000.0,0.00016829,2]
[351107816,1738339849747,-1000.0,0.00016829,2]
[351107818,1738339849757,-1000.0,0.00016829,2]
[351107820,1738339849767,-1000.0,0.00016829,2]
[351107822,1738339849776,-1000.0,0.00016829,2]
[351107823,1738339849786,-1000.0,0.00016829,2]
[351107825,1738339849796,-1000.0,0.00016829,2]
[351107827,1738339849805,-1017.90991595,0.00016829,2]
[351107830,1738339849823,-806.95,0.00016847,2]
[351107831,1738339849833,-2999.95,0.00016847,2]
[351107834,1738339849843,-500.0,0.00016847,2]
[351107836,1738339849854,-500.0,0.00016847,2]
[351107837,1738339849864,-2743.37,0.00016847,2]
[351107839,1738339849876,-784.99,0.00016847,2]
[351107841,1738339849888,-1522.06,0.00016847,2]
[351107844,1738339849901,-500.0,0.00016847,2]
[351107846,1738339849913,-780.69,0.00016847,2]
[351107848,1738339849922,-500.0,0.00016847,2]
[351107850,1738339849932,-1402.89,0.00016847,2]
[351107852,1738339849943,-1175.77,0.00016847,2]
[351107854,1738339849956,-710.82,0.00016847,2]
[351107856,1738339849968,-1494.56,0.00016847,2]
[351107858,1738339849983,-687.07,0.00016847,2]
[351107860,1738339849992,-1041.56,0.00016847,2]
[351107862,1738339850002,-952.06,0.00016847,2]
[351107864,1738339850011,-1314.47,0.00016847,2]
[351107866,1738339850022,-1741.91,0.00016847,2]
[351107868,1738339850033,-500.0,0.00016848,2]
[351107870,1738339850043,-500.0,0.00016848,2]
[351107872,1738339850052,-664.63,0.00016849,2]
[351107874,1738339850062,-500.0,0.00016849,2]
[351107876,1738339850071,-500.0,0.00016849,2]
[351107878,1738339850080,-468.57060369,0.00016849,2]
[351107880,1738339850090,-824.57,0.00016849,2]
[351107882,1738339850100,-500.0,0.00016849,2]
[351107884,1738339850109,-674.36,0.00016849,2]